fUSD/lending_fUSD_20240725
["ID","MTS","AMOUNT","RATE_DAILY","PERIOD"]
[333164585,1721901034667,-1697.92939358,9e-05,2]
[333164586,1721901034679,-3142.88092348,9e-05,2]
[333164587,1721901034691,-30787.64248467,9e-05,2]
[333164588,1721901034731,-916.02931614,9e-05,2]
[333164596,1721901038190,-451.57864314,9e-05,2]
[333164597,1721901038230,-3879.31648734,9e-05,2]
[333164598,1721901038241,-880.12,9e-05,2]
[333164599,1721901038253,-1765.0,9e-05,2]
[333164600,1721901038268,-24905.25111142,9e-05,2]
[333164601,1721901038280,-3074.74985537,9e-05,2]
[333164602,1721901038292,-13155.43099431,9e-05,2]
[333164603,1721901038303,-941.43031319,9e-05,2]
[333164604,1721901038314,-4677.82886025,9e-05,2]
[333164605,1721901038326,-128872.00000002,9e-05,2]
[333164606,1721901038472,-527.99648139,9e-05,2]
[333164607,1721901038484,-4779.57044089,9e-05,2]
[333164608,1721901038495,-955.97027776,9e-05,2]
[333164609,1721901038506,-4936.4916975,9e-05,2]
[333164610,1721901038520,-853.08727691,9e-05,2]
[333164611,1721901038532,-1857.14049247,9e-05,2]
[333164612,1721901038543,-1900.00081091,9e-05,2]
[333164645,1721901040285,-24115.25185454,9e-05,2]
[333164646,1721901040331,-300.0,9e-05,2]
[333164647,1721901040483,-13014.6,9e-05,2]
[333164648,1721901040494,-321.4943532,9e-05,2]
[333164649,1721901040614,-111166.14800576,9e-05,2]
[333164650,1721901040653,-663.40789983,9e-05,2]
[333164652,1721901043272,-294.38089567,9e-05,2]
[333164653,1721901043284,-295.464,9e-05,2]
[333164654,1721901043295,-419.49079659,9e-05,2]
[333164655,1721901043401,-5350.19999999,9e-05,2]
[333164656,1721901043413,-1673.025,9e-05,2]
[333164657,1721901043440,-2225.35700123,9e-05,2]
[333164661,1721901043670,-13136.9036584,9e-05,2]
[333164662,1721901046226,-669.58337309,9e-05,2]
[333164663,1721901046238,-5300.33307366,9e-05,2]
[333164668,1721901046391,-3375.74610507,9e-05,2]
[333164669,1721901046403,-269.24,9e-05,2]
[333164670,1721901046415,-1746.69492505,9e-05,2]
[333164683,1721901054385,306.66,0.000149,31]
[333164684,1721901054437,306.66,0.000149,31]
[333164685,1721901054493,306.66,0.000149,31]
[333164686,1721901054558,306.66,0.000149,31]
[333164687,1721901054617,306.66,0.000149,31]
[333164688,1721901054676,306.66,0.000149,31]
[333164689,1721901054750,306.66,0.000149,31]
[333164690,1721901054830,306.66,0.000149,31]
[333164691,1721901054872,306.66,0.000149,31]
[333164692,1721901054935,306.66,0.000149,31]
[333164693,1721901054999,306.66,0.000149,31]
[333164694,1721901055052,306.66,0.000149,31]
[333164695,1721901055115,306.66,0.000149,31]
[333164696,1721901055178,306.66,0.000149,31]
[333164697,1721901055239,306.66,0.000149,31]
[333164698,1721901055293,306.66,0.000149,31]
[333164699,1721901055350,306.66,0.000149,31]
[333164700,1721901055406,306.66,0.000149,31]
[333164701,1721901055463,306.66,0.000149,31]
[333164702,1721901055525,306.66,0.000149,31]
[333164710,1721901666151,245.36,0.000149,31]
[333164711,1721901666201,245.36,0.000149,31]
[333164712,1721901666263,245.36,0.000149,31]
[333164713,1721901666335,245.36,0.000149,31]
[333164714,1721901666382,245.36,0.000149,31]
[333164715,1721901666447,245.36,0.000149,31]
[333164716,1721901666499,245.36,0.000149,31]
[333164717,1721901666755,245.36,0.000149,31]
[333164718,1721901666858,245.36,0.000149,31]
[333164719,1721901667002,245.36,0.000149,31]
[333164720,1721901667041,245.36,0.000149,31]
[333164721,1721901667075,245.36,0.000149,31]
[333164722,1721901667159,245.36,0.000149,31]
[333164723,1721901667195,245.36,0.000149,31]
[333164724,1721901667223,245.36,0.000149,31]
[333164725,1721901667262,245.36,0.000149,31]
[333164726,1721901667294,245.36,0.000149,31]
[333164727,1721901667326,245.36,0.000149,31]
[333164728,1721901667352,245.36,0.000149,31]
[333164729,1721901667383,245.36,0.000149,31]
[333164796,1721902233193,-150.66623924,8.088e-05,2]
[333164797,1721902233203,-258.52146464,8.131e-05,2]
[333164798,1721902233214,-914.70934891,8.131e-05,2]
[333164799,1721902233225,-8055.90918645,8.131e-05,2]
[333164800,1721902233235,-300.0,8.152e-05,2]
[333164801,1721902233245,-4285.64,8.153e-05,2]
[333164802,1721902233255,-500.0,8.187e-05,2]
[333164803,1721902233264,-1148.09,8.219e-05,2]
[333164804,1721902233274,-320.0,8.233e-05,2]
[333164805,1721902233283,-250.0,8.384e-05,2]
[333164806,1721902233296,-2309.73,8.392e-05,2]
[333164807,1721902233306,-1468.7,8.419e-05,2]
[333164808,1721902233315,-2706.81,8.443e-05,2]
[333164809,1721902233325,-832.98,8.521e-05,2]
[333164810,1721902233337,-840.32,8.521e-05,2]
[333164811,1721902233348,-2000.0,8.767e-05,2]
[333164812,1721902233358,-277.79,8.874e-05,2]
[333164813,1721902233368,-1166.31,8.909e-05,2]
[333164814,1721902233380,-2424.0,8.91e-05,2]
[333164815,1721902233389,-420.0,8.967e-05,2]
[333164816,1721902233399,-1176.03875563,8.99e-05,2]
[333164817,1721902233409,-150.0,8.999e-05,2]
[333164818,1721902233419,-297568.56255499,9e-05,2]
[333164819,1721902233439,-787.72537109,9e-05,2]
[333164820,1721902233451,-753.09403611,9e-05,2]
[333164822,1721902238499,-26988.5,9e-05,2]
[333164823,1721902238582,-1244.38699109,9e-05,2]
[333164824,1721902238630,-514561.52668311,9e-05,2]
[333164825,1721902238641,-286.3073085,9e-05,2]
[333164826,1721902238680,-777.16020434,9e-05,2]
[333164827,1721902238745,-1925.36,9e-05,2]
[333164830,1721902240426,-6820.56713654,9e-05,2]
[333164831,1721902240575,-1065.24,9e-05,2]
[333164832,1721902240588,-1121.2213578,9e-05,2]
[333164833,1721902240662,-3058530.48241979,9e-05,2]
[333164834,1721902240674,-1106.53544697,9e-05,2]
[333164835,1721902240810,-478.75263346,9e-05,2]
[333164836,1721902240821,-52926.90367071,9e-05,2]
[333164837,1721902240855,-1044.795,9e-05,2]
[333164838,1721902240867,-440.96864,9e-05,2]
[333164844,1721902243677,-530.335053,9e-05,2]
[333164845,1721902243688,-500.57827625,9e-05,2]
[333164881,1721902246462,-379.71008372,9e-05,2]
[333164883,1721902246475,-794.89183922,9e-05,2]
[333164885,1721902246487,-3821.0,9e-05,2]
[333164886,1721902246498,-677.99999947,9e-05,2]
[333164888,1721902246510,-3401.54828208,9e-05,2]
[333164890,1721902246522,-4788.38967729,9e-05,2]
[333164892,1721902246533,-1033.05017563,9e-05,2]
[333164894,1721902246544,-1757.99426359,9e-05,2]
[333164895,1721902246555,-6037.61331955,9e-05,2]
[333164896,1721902246578,-2479.97084612,9e-05,2]
[333164897,1721902246589,-965.1418056,9e-05,2]
[333164898,1721902246600,-383.87296915,9e-05,2]
[333164899,1721902246612,-544.68072996,9e-05,2]
[333164900,1721902246623,-295.12565298,9e-05,2]
[333164901,1721902246634,-501.50580398,9e-05,2]
[333164902,1721902246645,-791.69949259,9e-05,2]
[333164903,1721902246656,-295.25514135,9e-05,2]
[333164904,1721902246671,-769.05650803,9e-05,2]
[333164905,1721902246683,-625.97799995,9e-05,2]
[333164906,1721902246694,-2306.87815915,9e-05,2]
[333164907,1721902246705,-1293.7277763,9e-05,2]
[333164908,1721902246718,-4666.27831828,9e-05,2]
[333164909,1721902246729,-209612.39085953,9e-05,2]
[333164910,1721902246740,-965.08,9e-05,2]
[333164911,1721902246751,-1636.31814337,9e-05,2]
[333164912,1721902246761,-14342.23395877,9e-05,2]
[333164913,1721902246781,-544.23808247,9e-05,2]
[333164914,1721902246793,-6649.48547676,9e-05,2]
[333164915,1721902246806,-6324.81784563,9e-05,2]
[333164916,1721902246818,-965.49685388,9e-05,2]
[333164917,1721902246829,-2089.86470127,9e-05,2]
[333164918,1721902246840,-449479.72041316,9e-05,2]
[333164919,1721902246852,-1458.83968283,9e-05,2]
[333164921,1721902246862,-409.14193754,9e-05,2]
[333164923,1721902246886,-531.0,9e-05,2]
[333164924,1721902247312,-432.5,9e-05,2]
[333164925,1721902247323,-736.8084,9e-05,2]
[333164930,1721902277971,196.32,0.000149,31]
[333164931,1721902278036,196.32,0.000149,31]
[333164932,1721902278095,196.32,0.000149,31]
[333164933,1721902278156,196.32,0.000149,31]
[333164934,1721902278218,196.32,0.000149,31]
[333164935,1721902278291,196.32,0.000149,31]
[333164936,1721902278349,196.32,0.000149,31]
[333164937,1721902278412,196.32,0.000149,31]
[333164938,1721902278466,196.32,0.000149,31]
[333164939,1721902278521,196.32,0.000149,31]
[333164940,1721902278588,196.32,0.000149,31]
[333164941,1721902278654,196.32,0.000149,31]
[333164942,1721902278709,196.32,0.000149,31]
[333164943,1721902278767,196.32,0.000149,31]
[333164944,1721902278820,196.32,0.000149,31]
[333164945,1721902278886,196.32,0.000149,31]
[333164946,1721902278949,196.32,0.000149,31]
[333164947,1721902279009,196.32,0.000149,31]
[333164948,1721902279083,196.32,0.000149,31]
[333164949,1721902279193,196.32,0.000149,31]
[333164951,1721902292467,151.0,0.00020469,120]
[333164975,1721902696972,151.0,0.00020469,120]
[333164976,1721902889810,157.07,0.000149,31]
[333164977,1721902889920,157.07,0.000149,31]
[333164978,1721902889976,157.07,0.000149,31]
[333164979,1721902890050,157.07,0.000149,31]
[333164980,1721902890125,157.07,0.000149,31]
[333164981,1721902890186,157.07,0.000149,31]
[333164982,1721902890237,157.07,0.000149,31]
[333164983,1721902890307,157.07,0.000149,31]
[333164984,1721902890347,157.07,0.000149,31]
[333164985,1721902890441,157.07,0.000149,31]
[333164986,1721902890488,157.07,0.000149,31]
[333164987,1721902890533,157.07,0.000149,31]
[333164988,1721902890601,157.07,0.000149,31]
[333164989,1721902890660,157.07,0.000149,31]
[333164990,1721902890719,157.07,0.000149,31]
[333164991,1721902890781,157.07,0.000149,31]
[333164992,1721902890840,157.07,0.000149,31]
[333164993,1721902890900,157.07,0.000149,31]
[333164994,1721902890955,157.07,0.000149,31]
[333164995,1721902891225,157.07,0.000149,31]
[333164996,1721902934914,151.0,0.00020469,120]
[333164999,1721903426781,151.0,0.00020469,120]
[333165008,1721903431537,-653.78731251,8.219e-05,2]
[333165009,1721903431549,-477.03268749,8.219e-05,2]
[333165010,1721903431558,-300.0,8.998e-05,2]
[333165011,1721903431571,-1322.66138189,8.998e-05,2]
[333165012,1721903431580,-181.15430097,8.998e-05,2]
[333165013,1721903431589,-332.64335054,8.999e-05,2]
[333165014,1721903431600,-681.39069848,8.999e-05,2]
[333165015,1721903431615,-300.10478696,8.999e-05,2]
[333165016,1721903431626,-401.61999996,8.999e-05,2]
[333165017,1721903431745,-854.16488114,8.999e-05,2]
[333165018,1721903431756,-464.47486671,8.999e-05,2]
[333165019,1721903431767,-1132.38722525,8.999e-05,2]
[333165020,1721903431779,-393.92151793,8.999e-05,2]
[333165021,1721903431789,-183.67273633,8.999e-05,2]
[333165022,1721903431800,-43.54775344,8.999e-05,2]
[333165023,1721903431811,-2186.65209013,8.999e-05,2]
[333165024,1721903431826,-2851.66208457,8.999e-05,2]
[333165025,1721903431835,-150.0,8.999e-05,2]
[333165026,1721903431844,-6716.71672606,9e-05,2]
[333165027,1721903432580,-428.45648914,9e-05,2]
[333165028,1721903432633,-591.41965906,9e-05,2]
[333165029,1721903432678,-4532.68685568,9e-05,2]
[333165043,1721903439220,-2280.35366348,8.999e-05,2]
[333165044,1721903439229,-520931.56852996,9e-05,2]
[333165045,1721903439239,-3016.54114172,9e-05,2]
[333165046,1721903439248,-1533.11274454,9e-05,2]
[333165047,1721903439257,-185.52296688,9e-05,2]
[333165048,1721903439266,-1911502.16103712,9e-05,2]
[333165051,1721903439567,-1925.25072804,9e-05,2]
[333165052,1721903439580,-4017.62439631,9e-05,2]
[333165053,1721903439616,-523550.6046504,9e-05,2]
[333165054,1721903439642,-4106.76279805,9e-05,2]
[333165055,1721903440164,-183.67273632,8.999e-05,2]
[333165056,1721903440174,-899.60223739,9e-05,2]
[333165057,1721903440205,-89752.10645799,9e-05,2]
[333165058,1721903440214,-413.9,9e-05,2]
[333165059,1721903440224,-162.71791445,9.065e-05,2]
[333165060,1721903440234,-415.34075934,9.149e-05,2]
[333165061,1721903440243,-1000.0,9.19e-05,2]
[333165062,1721903440252,-2000.0,9.235e-05,2]
[333165063,1721903440262,-11426.89839186,9.268e-05,2]
[333165064,1721903440273,-12473.10160814,9.268e-05,2]
[333165065,1721903440282,-382.5001774,9.286e-05,2]
[333165066,1721903440292,-2.86381446,9.301e-05,2]
[333165067,1721903440304,-719.26763437,9.301e-05,2]
[333165069,1721903440337,-9277.86855117,9.301e-05,2]
[333165070,1721903440346,-415.34075934,9.317e-05,2]
[333165071,1721903440356,-382.5001774,9.344e-05,2]
[333165072,1721903440365,-900.0,9.588e-05,2]
[333165073,1721903440375,-415.34075934,9.595e-05,2]
[333165074,1721903440384,-940.04012856,9.607e-05,2]
[333165075,1721903440394,-382.5001774,9.625e-05,2]
[333165076,1721903440404,-4993.82,9.67e-05,2]
[333165077,1721903440413,-150.99,9.67e-05,2]
[333165078,1721903440423,-1243.5,9.67e-05,2]
[333165079,1721903440432,-299.99,9.67e-05,2]
[333165080,1721903440443,-150.99,9.67e-05,2]
[333165081,1721903440452,-254.02,9.67e-05,2]
[333165082,1721903440462,-205.39,9.692e-05,2]
[333165083,1721903440471,-172.47,9.752e-05,2]
[333165084,1721903440481,-200.0,9.752e-05,2]
[333165085,1721903440490,-250.0,9.752e-05,2]
[333165086,1721903440500,-255.0,9.899e-05,2]
[333165087,1721903440509,-162.71791445,9.933e-05,2]
[333165088,1721903440519,-415.34075934,9.969e-05,2]
[333165089,1721903440529,-174.6373474,0.0001,2]
[333165090,1721903440538,-3000.0,0.0001,2]
[333165091,1721903440547,-382.5001774,0.00010044,2]
[333165092,1721903440557,-415.34075934,0.00010291,2]
[333165093,1721903440567,-382.5001774,0.00010332,2]
[333165094,1721903440578,-1000.0,0.00010339,2]
[333165095,1721903440586,-233.08877888,0.0001035,5]
[333165096,1721903440596,-150.0,0.0001035,5]
[333165097,1721903440606,-150.0,0.0001035,5]
[333165098,1721903440617,-1130.82,0.00010463,2]
[333165099,1721903440626,-382.5001774,0.00010581,2]
[333165100,1721903440636,-457.576,0.00010598,2]
[333165101,1721903440646,-415.34075934,0.00010633,2]
[333165102,1721903440655,-2300.0,0.00010684,2]
[333165103,1721903440664,-2000.0,0.00010684,2]
[333165104,1721903440674,-600.0,0.00010684,2]
[333165105,1721903440686,-500.0,0.00010684,2]
[333165106,1721903440694,-20252.0,0.00010689,2]
[333165107,1721903440704,-382.5001774,0.00010732,2]
[333165108,1721903440714,-415.34075934,0.00010739,2]
[333165109,1721903440723,-185.52296687,0.00010788,2]
[333165110,1721903440732,-38940.12003052,0.00010878,2]
[333165111,1721903440744,-1682.61449012,0.00010878,2]
[333165121,1721903442971,-408.46335632,0.00010878,2]
[333165122,1721903443102,-4679.15777897,0.00010878,2]
[333165123,1721903443133,-1988.54867213,0.00010878,2]
[333165124,1721903443188,-567.20127693,0.00010878,2]
[333165125,1721903443230,-4207.5,0.00010878,2]
[333165126,1721903443242,-55454.99887276,0.00010878,2]
[333165127,1721903443251,-516.0,0.0001088,2]
[333165128,1721903443260,-265429.00112729,0.0001088,2]
[333165160,1721903445767,-1140.17683174,8.999e-05,2]
[333165161,1721903445776,-5180.32316826,0.0001088,2]
[333165164,1721903446186,-92395.91394986,0.0001088,2]
[333165165,1721903446199,-6882.92088896,0.0001088,2]
[333167794,1721903500772,153.26,0.000149,31]
[333167795,1721903500829,153.26,0.000149,31]
[333167796,1721903500931,153.26,0.000149,31]
[333167797,1721903500989,153.26,0.000149,31]
[333167798,1721903501027,153.26,0.000149,31]
[333167799,1721903501077,153.26,0.000149,31]
[333167800,1721903501133,153.26,0.000149,31]
[333167801,1721903501202,153.26,0.000149,31]
[333167802,1721903501254,153.26,0.000149,31]
[333167803,1721903501318,153.26,0.000149,31]
[333167804,1721903501612,153.26,0.000149,31]
[333167805,1721903501655,153.26,0.000149,31]
[333167806,1721903501685,153.26,0.000149,31]
[333167807,1721903501720,153.26,0.000149,31]
[333167808,1721903501760,153.26,0.000149,31]
[333167809,1721903501797,153.26,0.000149,31]
[333167810,1721903501831,153.26,0.000149,31]
[333167811,1721903501860,153.26,0.000149,31]
[333167843,1721904109320,153.29,0.000149,31]
[333167844,1721904109425,153.29,0.000149,31]
[333167845,1721904109604,153.29,0.000149,31]
[333167846,1721904109658,153.29,0.000149,31]
[333167847,1721904109716,153.29,0.000149,31]
[333167848,1721904109781,153.29,0.000149,31]
[333167849,1721904109844,153.29,0.000149,31]
[333167850,1721904109895,153.29,0.000149,31]
[333167851,1721904109951,153.29,0.000149,31]
[333167852,1721904110073,153.29,0.000149,31]
[333167853,1721904110141,153.29,0.000149,31]
[333167854,1721904110224,153.29,0.000149,31]
[333167879,1721904633390,-6286.357445,8e-05,2]
[333167880,1721904633402,-603.38328281,8e-05,2]
[333167881,1721904633414,-15696.37676216,8e-05,2]
[333167882,1721904633425,-1988.18386342,8e-05,2]
[333167883,1721904633435,-643.41,8.119e-05,2]
[333167884,1721904633444,-1113.91,8.219e-05,2]
[333167885,1721904633453,-1027.61591233,9.588e-05,2]
[333167886,1721904633507,-1853.15659064,9.588e-05,2]
[333167887,1721904633516,-398.99515565,9.588e-05,2]
[333167888,1721904633526,-3241.3605,9.652e-05,2]
[333167889,1721904633535,-297.46238895,9.752e-05,2]
[333167890,1721904633629,-278.60878409,9.752e-05,2]
[333167891,1721904633641,-1115.8023317,9.752e-05,2]
[333167892,1721904633652,-289.3455407,9.752e-05,2]
[333167893,1721904633663,-18.78095456,9.752e-05,2]
[333167894,1721904633672,-1000.0,9.76e-05,2]
[333167895,1721904633682,-250.0,9.813e-05,2]
[333167896,1721904633691,-2230.2428147,9.86e-05,2]
[333167897,1721904633703,-21669.7571853,9.86e-05,2]
[333167898,1721904633712,-150.0,9.945e-05,2]
[333167899,1721904633722,-171.97,9.967e-05,2]
[333167900,1721904633732,-150.0,9.996e-05,2]
[333167901,1721904633742,-7020.6,9.997e-05,2]
[333167902,1721904633751,-150.99,9.997e-05,2]
[333167903,1721904633761,-1113.91,0.00010463,2]
[333167904,1721904633770,-499.99,0.00010463,2]
[333167905,1721904633780,-507.3073,0.00010471,2]
[333167906,1721904633789,-2549.5628,0.00010471,2]
[333167907,1721904633800,-212.9134,0.00010471,2]
[333167908,1721904633810,-61206.41282453,0.00010571,2]
[333167949,1721904637822,-2245.09172646,0.00010571,2]
[333167950,1721904637834,-384.2290936,0.00010571,2]
[333167951,1721904637846,-6000.0,0.00010571,2]
[333167952,1721904637907,-9416.82015602,0.00010571,2]
[333167953,1721904637919,-2109.83826179,0.00010571,2]
[333167954,1721904637930,-9147.58767893,0.00010571,2]
[333167955,1721904637946,-4426.77650109,0.00010571,2]
[333167956,1721904637958,-33486.67683737,0.00010571,2]
[333167957,1721904637970,-8473.83522021,0.00010571,2]
[333167958,1721904637979,-24568.9945,0.00010571,2]
[333167959,1721904637989,-1401.4409,0.00010571,2]
[333167960,1721904637999,-24448.29226096,0.00010671,2]
[333167961,1721904638020,-1777.0,0.00010671,2]
[333167962,1721904638033,-9240.36463904,0.00010671,2]
[333167963,1721904638042,-783.193,0.00010671,2]
[333167964,1721904638053,-4014.86352823,0.00010671,2]
[333167965,1721904638064,-657.76259654,0.00010671,2]
[333167966,1721904638079,-605.30007405,0.00010671,2]
[333167967,1721904638090,-394.06350118,0.00010671,2]
[333167968,1721904638099,-301.43858083,0.00010671,2]
[333167969,1721904638112,-260.54981917,0.00010671,2]
[333167970,1721904638121,-266.79282233,0.00010671,2]
[333167971,1721904638132,-4914.89642156,0.00010671,2]
[333167972,1721904638145,-315.33234492,0.00010671,2]
[333167973,1721904638155,-1267.87744006,0.00010671,2]
[333167974,1721904638532,-1728.17909024,0.00010671,2]
[333167984,1721904639839,-304.33735203,0.00010671,2]
[333167985,1721904639917,-1663.5002,0.00010671,2]
[333167986,1721904639992,-13359.8266714,0.00010671,2]
[333167987,1721904640004,-578.06080476,0.00010671,2]
[333167988,1721904640071,-3196.31126628,0.00010671,2]
[333167989,1721904640328,-849.41248555,0.00010671,2]
[333167990,1721904640348,-1986.34492326,0.00010671,2]
[333167991,1721904640359,-641.72755,0.00010671,2]
[333167992,1721904640371,-641.47,0.00010671,2]
[333167993,1721904640382,-943.5200607,0.00010671,2]
[333167994,1721904640397,-2335.77121904,0.00010671,2]
[333167995,1721904640409,-1007.52312096,0.00010671,2]
[333167996,1721904640473,-27183.91658124,0.00010671,2]
[333167997,1721904640485,-1308.35300609,0.00010671,2]
[333167998,1721904640496,-1776.74430848,0.00010671,2]
[333167999,1721904640507,-844.59940527,0.00010671,2]
[333168000,1721904640518,-840.77658634,0.00010671,2]
[333168007,1721904642951,-1683.4285525,0.00010671,2]
[333168008,1721904642963,-328.04999985,0.00010671,2]
[333168009,1721904643024,-274.49314456,0.00010671,2]
[333168010,1721904643036,-16343.625645,0.00010671,2]
[333168011,1721904643048,-690.0,0.00010671,2]
[333168012,1721904643066,-7300.0,0.00010671,2]
[333168013,1721904643078,-5420.415,0.00010671,2]
[333168014,1721904643094,-4.71399758,0.00010671,2]
[333168015,1721904643104,-355.02456461,0.00010671,2]
[333168016,1721904643144,-144.97543539,0.00010671,2]
[333168017,1721904643154,-633.93895092,0.00010671,2]
[333168023,1721904645792,-366.06104908,0.00010671,2]
[333168024,1721904645803,-500.0,0.00010684,2]
[333168025,1721904645812,-500.0,0.00010684,2]
[333168026,1721904645823,-468.79257521,0.00010826,2]
[333168027,1721904646237,-31.20742479,0.00010826,2]
[333168028,1721904646247,-500.0,0.00010826,2]
[333168029,1721904646257,-500.0,0.00010826,2]
[333168030,1721904646267,-500.0,0.00010826,2]
[333168032,1721904646276,-500.0,0.00010826,2]
[333168034,1721904646285,-500.0,0.00010826,2]
[333168036,1721904646295,-500.0,0.00010826,2]
[333168038,1721904646304,-500.0,0.00010826,2]
[333168040,1721904646313,-624.2423,0.00010826,2]
[333168041,1721904646323,-1140.17683174,0.00010879,2]
[333168042,1721904646333,-518.0,0.0001088,2]
[333168043,1721904646342,-5150.73080578,0.0001088,2]
[333168044,1721904646353,-561.55,0.0001088,2]
[333168045,1721904646365,-297.45551968,0.0001088,2]
[333168046,1721904646376,-353.47,0.0001088,2]
[333168047,1721904646388,-1784.8746892,0.0001088,2]
[333168048,1721904646400,-1361.88681,0.0001088,2]
[333168049,1721904646410,-571.30942693,0.0001088,2]
[333168050,1721904646422,-2858.56287337,0.0001088,2]
[333168051,1721904646433,-385.90431891,0.0001088,2]
[333168054,1721904646448,-759.08272986,0.0001088,2]
[333168066,1721904716015,153.3,0.000149,31]
[333168067,1721904716089,153.3,0.000149,31]
[333168068,1721904716136,153.3,0.000149,31]
[333168069,1721904716196,153.3,0.000149,31]
[333168070,1721904716309,153.3,0.000149,31]
[333168071,1721904716357,153.3,0.000149,31]
[333168072,1721904716430,153.3,0.000149,31]
[333168073,1721904716496,153.3,0.000149,31]
[333168074,1721904716553,153.3,0.000149,31]
[333168075,1721904716610,153.3,0.000149,31]
[333168076,1721904716673,153.3,0.000149,31]
[333168077,1721904716732,153.3,0.000149,31]
[333168092,1721905322008,153.32,0.000149,31]
[333168093,1721905322118,153.32,0.000149,31]
[333168094,1721905322179,153.32,0.000149,31]
[333168095,1721905322243,153.32,0.000149,31]
[333168096,1721905322311,153.32,0.000149,31]
[333168097,1721905322380,153.32,0.000149,31]
[333168098,1721905322434,153.32,0.000149,31]
[333168099,1721905322537,153.32,0.000149,31]
[333168116,1721905832130,-1425.84755736,8.218e-05,2]
[333168117,1721905832141,-782.15244264,8.218e-05,2]
[333168118,1721905832151,-394.48571911,8.219e-05,2]
[333168119,1721905833639,-752.28428089,8.219e-05,2]
[333168120,1721905833649,-1116.85866897,8.25e-05,2]
[333168121,1721905833676,-673.95236277,8.25e-05,2]
[333168122,1721905833690,-848.43302,8.25e-05,2]
[333168130,1721905838074,-452.64,8.219e-05,2]
[333168131,1721905838151,-854.34805812,8.219e-05,2]
[333168132,1721905838233,-947.50118713,8.219e-05,2]
[333168133,1721905838242,-51.3380629,8.25e-05,2]
[333168134,1721905838304,-1511.4144755,8.25e-05,2]
[333168135,1721905838378,-1143.40519,8.25e-05,2]
[333168147,1721905840278,-1833.20025846,8.25e-05,2]
[333168148,1721905840371,-2178.06360526,8.25e-05,2]
[333168149,1721905840382,-599.02514695,8.25e-05,2]
[333168191,1721905843308,-562.6023957,8.25e-05,2]
[333168192,1721905843325,-313.00235196,8.25e-05,2]
[333168193,1721905843337,-495.13548268,8.25e-05,2]
[333168194,1721905843403,-546.65895074,8.25e-05,2]
[333168195,1721905843498,-314.105432,8.25e-05,2]
[333168205,1721905846186,-3414.52531451,8.25e-05,2]
[333168206,1721905846273,-743.3523116,8.25e-05,2]
[333168209,1721905927918,153.34,0.000149,31]
[333168210,1721905927999,153.34,0.000149,31]
[333168211,1721905928060,153.34,0.000149,31]
[333168212,1721905928113,153.34,0.000149,31]
[333168213,1721905928167,153.34,0.000149,31]
[333168214,1721905928251,153.34,0.000149,31]
[333168215,1721905928299,153.34,0.000149,31]
[333168216,1721905928398,153.34,0.000149,31]
[333168217,1721906531710,153.36,0.000149,31]
[333168218,1721906531843,153.36,0.000149,31]
[333168219,1721906531907,153.36,0.000149,31]
[333168220,1721906531967,153.36,0.000149,31]
[333168221,1721906532033,153.36,0.000149,31]
[333168222,1721906532091,153.36,0.000149,31]
[333168223,1721906532145,153.36,0.000149,31]
[333168224,1721906532211,153.36,0.000149,31]